[Event "WYCC 2018 G14"]
[Site "Halkidiki"]
[Date "2018.10.28"]
[Round "9"]
[White "Zaritovskaja, Margarita"]
[Black "Yellamraju, Ambica"]
[Result "0-1"]
[ECO "C13"]
[WhiteElo "1731"]
[BlackElo "1647"]
[Annotator "NA"]
[PlyCount "126"]
[EventDate "2018.10.20"]
[EventType "swiss"]
[EventCountry "GRE"]
[SourceTitle "playchess.com"]
[Source "ChessBase"]
[SourceQuality "1"]
[TimeControl "40/5400+30:1800+30"]

1. e4 {[%emt 0:00:00]} e6 {[%emt 0:00:00]} 2. d4 {[%emt 0:00:00]} d5 {[%emt 0:00:00]} 3. Nc3 {[%emt 0:00:00]} Nf6 {[%emt 0:00:02]} 4. Bg5 {[%emt 0:00:19]} Be7 {[%emt 0:00:10]} 5. e5 {[%emt 0:00:35]} Nfd7 {[%emt 0:00:07]} 6. h4 {[%emt 0:00:33]} Bxg5 {[%emt 0:00:21]} 7. hxg5 {[%emt 0:00:05]} Qxg5 {[%emt 0:00:12]} 8. Nh3 {[%emt 0:01:10]} Qe7 {[%emt 0:00:11]} 9. Nb5 {[%emt 0:01:02]} Nb6 {[%emt 0:07:02]} 10. Qd2 {[%emt 0:06:40]} a6 {[%emt 0:01:58]} 11. Nc3 {[%emt 0:05:07]} Nc6 {[%emt 0:01:38]} 12. O-O-O {[%emt 0:10:17]} Bd7 {[%emt 0:03:02]} 13. Qg5 {[%emt 0:02:55]} Qxg5+ {[%emt 0:03:01]} 14. Nxg5 {[%emt 0:00:06]} h6 {[%emt 0:00:32]} 15. f4 {[%emt 0:01:40]} Ke7 {[%emt 0:03:38]} 16. Nf3 {[%emt 0:01:24]} h5 {[%emt 0:02:47]} 17. Be2 {[%emt 0:05:19]} Na5 {[%emt 0:03:43]} 18. Ne1 {[%emt 0:08:43]} g6 {[%emt 0:02:50]} 19. Nd3 {[%emt 0:02:40]} Nbc4 {[%emt 0:08:33]} 20. Nc5 {[%emt 0:05:21]} Ne3 {[%emt 0:07:38]} 21. Rd3 {[%emt 0:17:12]} Nf5 {[%emt 0:14:09]} 22. g4 {[%emt 0:09:54]} hxg4 {[%emt 0:00:56]} 23. Rxh8 {[%emt 0:00:07]} Rxh8 {[%emt 0:00:10]} 24. Bxg4 {[%emt 0:01:17]} Rh1+ {[%emt 0:02:45]} 25. Rd1 {[%emt 0:06:05]} Rxd1+ {[%emt 0:01:31]} 26. Nxd1 {[%emt 0:00:10]} Nxd4 {[%emt 0:05:27]} 27. Nc3 {[%emt 0:00:55]} Nf5 {[%emt 0:06:37]} 28. b3 {[%emt 0:04:44]} Bc8 {[%emt 0:01:45]} 29. Kd2 {[%emt 0:01:48]} b6 {[%emt 0:00:59]} 30. Nd3 {[%emt 0:00:17]} Bd7 {[%emt 0:02:50]} 31. Nb4 {[%emt 0:01:39]} Bc8 {[%emt 0:01:45]} 32. Be2 {[%emt 0:01:50]} b5 {[%emt 0:01:12]} 33. Nd3 {[%emt 0:01:26]} Nb7 {[%emt 0:01:31]} 34. a4 {[%emt 0:00:56]} Nd4 {[%emt 0:01:44]} 35. axb5 {[%emt 0:01:31]} axb5 {[%emt 0:00:26]} 36. Bg4 {[%emt 0:00:54]} Bd7 {[%emt 0:00:54]} 37. b4 {[%emt 0:00:36]} Be8 {[%emt 0:06:02]} 38. Na2 {[%emt 0:00:52]} Kd7 {[%emt 0:01:25]} 39. c3 {[%emt 0:00:29]} Nf5 {[%emt 0:00:18]} 40. Nac1 {[%emt 0:00:00]} Ng3 {[%emt 0:00:00]} 41. Bf3 {[%emt 0:05:37]} Kc6 {[%emt 0:03:46]} 42. Ke3 {[%emt 0:05:31]} Kb6 {[%emt 0:02:39]} 43. Nb3 {[%emt 0:00:14]} Nf5+ {[%emt 0:00:35]} 44. Kd2 {[%emt 0:00:38]} Bc6 {[%emt 0:01:02]} 45. Ndc5 {[%emt 0:05:07]} d4 {[%emt 0:07:58]} 46. Bxc6 {[%emt 0:01:42]} dxc3+ {[%emt 0:01:08]} 47. Kxc3 {[%emt 0:00:05]} Kxc6 {[%emt 0:00:37]} 48. Nxb7 {[%emt 0:01:59]} Kxb7 {[%emt 0:00:29]} 49. Nc5+ {[%emt 0:02:52]} Kc6 {[%emt 0:00:59]} 50. Kd3 {[%emt 0:00:44]} Ng3 {[%emt 0:02:11]} 51. Na6 {[%emt 0:05:26]} Nf5 {[%emt 0:02:29]} 52. Nc5 {[%emt 0:00:27]} Ne7 {[%emt 0:02:41]} 53. Kd4 {[%emt 0:00:36]} Nd5 {[%emt 0:01:29]} 54. Nd3 {[%emt 0:00:18]} Kb6 {[%emt 0:00:31]} 55. Ke4 {[%emt 0:00:36]} c6 {[%emt 0:01:04]} 56. Kd4 {[%emt 0:00:24]} Nxb4 {[%emt 0:01:04]} 57. Nf2 {[%emt 0:01:26]} c5+ {[%emt 0:00:23]} 58. Ke4 {[%emt 0:00:24]} Nc6 {[%emt 0:00:42]} 59. Ng4 {[%emt 0:00:14]} b4 {[%emt 0:00:19]} 60. Kd3 {[%emt 0:00:11]} Kb5 {[%emt 0:00:22]} 61. Ne3 {[%emt 0:00:31]} g5 {[%emt 0:00:26]} 62. fxg5 {[%emt 0:00:34]} Nxe5+ {[%emt 0:00:01]} 63. Kc2 {[%emt 0:00:09]} Nf3 {[%emt 0:00:14]} 0-1

[Event "WYCC 2018 G14"]
[Site "Halkidiki"]
[Date "2018.10.28"]
[Round "9"]
[White "Djordjevic, Nevena"]
[Black "Kouta, Antonia"]
[Result "1-0"]
[ECO "E30"]
[WhiteElo "1704"]
[BlackElo "1812"]
[Annotator "NA"]
[PlyCount "79"]
[EventDate "2018.10.20"]
[EventType "swiss"]
[EventCountry "GRE"]
[SourceTitle "playchess.com"]
[Source "ChessBase"]
[SourceQuality "1"]
[TimeControl "40/5400+30:1800+30"]

1. d4 {[%emt 0:00:00]} Nf6 {[%emt 0:00:00]} 2. c4 {[%emt 0:00:00]} e6 {[%emt 0:00:00]} 3. Nc3 {[%emt 0:00:00]} Bb4 {[%emt 0:00:00]} 4. Bg5 {[%emt 0:00:00]} h6 {[%emt 0:01:28]} 5. Bh4 {[%emt 0:00:06]} g5 {[%emt 0:07:05]} 6. Bg3 {[%emt 0:00:11]} Ne4 {[%emt 0:00:21]} 7. Qc2 {[%emt 0:03:45]} f5 {[%emt 0:03:43]} 8. e3 {[%emt 0:04:44]} b6 {[%emt 0:02:03]} 9. Bd3 {[%emt 0:05:41]} Bb7 {[%emt 0:01:23]} 10. f3 {[%emt 0:12:12]} Nxg3 {[%emt 0:07:42]} 11. hxg3 {[%emt 0:00:07]} Qf6 {[%emt 0:03:21]} 12. Nge2 {[%emt 0:03:19]} c5 {[%emt 0:08:54]} 13. O-O-O {[%emt 0:21:20]} cxd4 {[%emt 0:09:05]} 14. Nxd4 {[%emt 0:08:08]} O-O {[%emt 0:05:27]} 15. Rh2 {[%emt 0:04:53]} Nc6 {[%emt 0:06:14]} 16. Nce2 {[%emt 0:08:18]} Ne5 {[%emt 0:07:58]} 17. Rdh1 {[%emt 0:03:01]} Kg7 {[%emt 0:04:11]} 18. Kb1 {[%emt 0:05:16]} Rh8 {[%emt 0:01:42]} 19. Bxf5 {[%emt 0:13:58]} Rac8 {[%emt 0:03:50]} 20. Bd3 {[%emt 0:00:27]} d5 {[%emt 0:01:48]} 21. Qb3 {[%emt 0:02:26]} dxc4 {[%emt 0:10:36]} 22. Qxb4 {[%emt 0:00:12]} Nxd3 {[%emt 0:00:39]} 23. Qd6 {[%emt 0:00:23]} Nc5 {[%emt 0:00:32]} 24. g4 {[%emt 0:01:57]} Rcd8 {[%emt 0:05:41]} 25. Qg3 {[%emt 0:00:39]} Bc8 {[%emt 0:04:16]} 26. Rc1 {[%emt 0:00:49]} e5 {[%emt 0:01:19]} 27. Nb5 {[%emt 0:01:00]} a6 {[%emt 0:00:44]} 28. Nbc3 {[%emt 0:00:33]} Nd3 {[%emt 0:01:59]} 29. Ne4 {[%emt 0:00:17]} Qe6 {[%emt 0:00:52]} 30. Rc2 {[%emt 0:00:39]} b5 {[%emt 0:00:19]} 31. Rh1 {[%emt 0:00:25]} Bb7 {[%emt 0:00:31]} 32. Nf2 {[%emt 0:00:25]} Nb4 {[%emt 0:00:13]} 33. Rc3 {[%emt 0:00:30]} Nd5 {[%emt 0:00:38]} 34. Rcc1 {[%emt 0:00:44]} Nxe3 {[%emt 0:00:05]} 35. Nc3 {[%emt 0:00:17]} Ba8 {[%emt 0:01:38]} 36. Rhe1 {[%emt 0:00:21]} Qg6+ {[%emt 0:00:27]} 37. Nfe4 Nd5 {[%emt 0:01:10]} 38. Qxe5+ {[%emt 0:00:31]} Kf7 {[%emt 0:00:12]} 39. Nxd5 {[%emt 0:00:00]} Rxd5 {[%emt 0:00:00]} 40. Qxh8 {[%emt 0:00:00]} 1-0

[Event "WYCC 2018 G14"]
[Site "Halkidiki"]
[Date "2018.10.28"]
[Round "9"]
[White "Kostina, Veronika"]
[Black "Sleurs, Juliette"]
[Result "0-1"]
[ECO "C68"]
[WhiteElo "1700"]
[BlackElo "1812"]
[Annotator "NA"]
[PlyCount "104"]
[EventDate "2018.10.20"]
[EventType "swiss"]
[EventCountry "GRE"]
[SourceTitle "playchess.com"]
[Source "ChessBase"]
[SourceQuality "1"]
[TimeControl "40/5400+30:1800+30"]

1. e4 {[%emt 0:00:00]} e5 {[%emt 0:00:00]} 2. Nf3 {[%emt 0:00:00]} Nc6 {[%emt 0:00:00]} 3. Bb5 {[%emt 0:00:03]} a6 {[%emt 0:00:00]} 4. Bxc6 {[%emt 0:00:15]} dxc6 {[%emt 0:00:00]} 5. d4 {[%emt 0:00:25]} exd4 {[%emt 0:00:19]} 6. Qxd4 {[%emt 0:00:23]} Qxd4 {[%emt 0:01:40]} 7. Nxd4 {[%emt 0:00:15]} Nf6 {[%emt 0:04:00]} 8. f3 {[%emt 0:03:10]} Bc5 {[%emt 0:06:56]} 9. Be3 {[%emt 0:05:48]} O-O {[%emt 0:05:50]} 10. Nd2 {[%emt 0:11:54]} Re8 {[%emt 0:08:37]} 11. Kf2 {[%emt 0:12:50]} Bd7 {[%emt 0:10:03]} 12. Nf5 {[%emt 0:14:19]} Bf8 {[%emt 0:02:58]} 13. Ng3 {[%emt 0:09:33]} Rad8 {[%emt 0:05:45]} 14. Rhd1 {[%emt 0:03:39]} h6 {[%emt 0:11:50]} 15. Nb3 {[%emt 0:05:47]} b6 {[%emt 0:03:04]} 16. Nd4 {[%emt 0:05:42]} c5 {[%emt 0:00:47]} 17. Nde2 {[%emt 0:02:26]} g5 {[%emt 0:13:26]} 18. Rd2 {[%emt 0:04:19]} Be6 {[%emt 0:02:28]} 19. a3 {[%emt 0:02:14]} Bg7 {[%emt 0:01:03]} 20. Rad1 {[%emt 0:05:11]} Rxd2 {[%emt 0:01:19]} 21. Bxd2 {[%emt 0:01:10]} Rd8 {[%emt 0:01:51]} 22. Ke1 {[%emt 0:01:15]} Ne8 {[%emt 0:05:38]} 23. Bc3 {[%emt 0:02:12]} Rxd1+ {[%emt 0:01:01]} 24. Kxd1 {[%emt 0:00:03]} Bxc3 {[%emt 0:01:51]} 25. Nxc3 {[%emt 0:00:02]} Nd6 {[%emt 0:00:46]} 26. Ke2 {[%emt 0:02:33]} Nc4 {[%emt 0:01:55]} 27. Nd1 {[%emt 0:00:51]} b5 {[%emt 0:01:28]} 28. Nf1 {[%emt 0:03:47]} b4 {[%emt 0:02:00]} 29. axb4 {[%emt 0:01:10]} cxb4 {[%emt 0:00:15]} 30. Nfe3 {[%emt 0:01:41]} Nb6 {[%emt 0:03:01]} 31. b3 {[%emt 0:01:00]} c5 {[%emt 0:01:14]} 32. Nb2 {[%emt 0:00:26]} a5 {[%emt 0:00:41]} 33. Kd2 {[%emt 0:01:11]} Kf8 {[%emt 0:01:11]} 34. Nbc4 {[%emt 0:00:46]} Bxc4 {[%emt 0:00:26]} 35. Nxc4 {[%emt 0:00:34]} Nxc4+ {[%emt 0:00:07]} 36. bxc4 {[%emt 0:00:00]} Ke7 {[%emt 0:00:22]} 37. Kc1 {[%emt 0:00:28]} Ke6 {[%emt 0:00:31]} 38. Kb2 {[%emt 0:00:12]} Ke5 {[%emt 0:01:32]} 39. Kb3 {[%emt 0:00:52]} Kd4 {[%emt 0:00:28]} 40. g3 {[%emt 0:00:00]} a4+ {[%emt 0:00:00]} 41. Kxa4 {[%emt 0:02:40]} Kxc4 {[%emt 0:03:46]} 42. e5 {[%emt 0:02:57]} Kc3 {[%emt 0:01:09]} 43. f4 {[%emt 0:03:12]} Kxc2 {[%emt 0:00:43]} 44. f5 {[%emt 0:01:13]} b3 {[%emt 0:00:16]} 45. e6 {[%emt 0:00:25]} b2 {[%emt 0:00:13]} 46. Kb5 {[%emt 0:01:38]} b1=Q+ {[%emt 0:00:19]} 47. Kxc5 {[%emt 0:00:09]} fxe6 {[%emt 0:01:13]} 48. fxe6 {[%emt 0:00:34]} Qb8 {[%emt 0:00:11]} 49. Kd5 {[%emt 0:00:47]} Kd3 {[%emt 0:00:48]} 50. e7 {[%emt 0:00:55]} Qe8 {[%emt 0:00:15]} 51. Ke6 {[%emt 0:00:25]} Ke4 {[%emt 0:00:24]} 52. Kf6 {[%emt 0:01:01]} g4 {[%emt 0:00:54]} 0-1

[Event "WYCC 2018 G14"]
[Site "Halkidiki"]
[Date "2018.10.28"]
[Round "9"]
[White "He, Emma"]
[Black "Kasaeva, Sofiia"]
[Result "0-1"]
[ECO "B50"]
[WhiteElo "1674"]
[BlackElo "1874"]
[Annotator "NA"]
[PlyCount "72"]
[EventDate "2018.10.20"]
[EventType "swiss"]
[EventCountry "GRE"]
[SourceTitle "playchess.com"]
[Source "ChessBase"]
[SourceQuality "1"]
[TimeControl "40/5400+30:1800+30"]

1. e4 {[%emt 0:00:00]} c5 {[%emt 0:00:00]} 2. Nf3 {[%emt 0:00:00]} d6 {[%emt 0:00:00]} 3. c3 {[%emt 0:00:00]} Nf6 {[%emt 0:00:02]} 4. h3 {[%emt 0:00:00]} Nc6 {[%emt 0:00:30]} 5. Bd3 {[%emt 0:00:00]} d5 {[%emt 0:00:48]} 6. e5 {[%emt 0:01:01]} Nd7 {[%emt 0:00:07]} 7. Qe2 {[%emt 0:01:22]} c4 {[%emt 0:00:13]} 8. Bc2 {[%emt 0:00:43]} Qc7 {[%emt 0:00:19]} 9. e6 {[%emt 0:01:59]} fxe6 {[%emt 0:00:06]} 10. Qxe6 {[%emt 0:06:32]} Nf6 {[%emt 0:00:06]} 11. Qe2 {[%emt 0:00:56]} e5 {[%emt 0:00:49]} 12. b3 {[%emt 0:04:25]} cxb3 {[%emt 0:17:03]} 13. axb3 {[%emt 0:07:44]} Be7 {[%emt 0:04:08]} 14. Na3 {[%emt 0:06:43]} O-O {[%emt 0:03:39]} 15. Nb5 {[%emt 0:06:18]} Qb8 {[%emt 0:03:47]} 16. d4 {[%emt 0:09:36]} e4 {[%emt 0:04:57]} 17. Nd2 {[%emt 0:03:00]} a6 {[%emt 0:03:46]} 18. Na3 {[%emt 0:00:15]} b5 {[%emt 0:02:05]} 19. b4 {[%emt 0:05:33]} Bf5 {[%emt 0:07:53]} 20. O-O {[%emt 0:04:00]} Qd6 {[%emt 0:10:18]} 21. f3 {[%emt 0:11:11]} Nh5 {[%emt 0:13:42]} 22. Re1 {[%emt 0:08:52]} Bh4 {[%emt 0:09:09]} 23. fxe4 {[%emt 0:06:25]} Nf4 {[%emt 0:04:34]} 24. Qe3 {[%emt 0:03:28]} Bxe1 {[%emt 0:00:38]} 25. Qxe1 {[%emt 0:00:26]} Qg6 {[%emt 0:02:57]} 26. g3 {[%emt 0:03:41]} Nxh3+ {[%emt 0:01:32]} 27. Kh2 {[%emt 0:00:13]} dxe4 {[%emt 0:00:46]} 28. Bxe4 {[%emt 0:01:19]} Rae8 {[%emt 0:01:51]} 29. Bd5+ {[%emt 0:03:09]} Kh8 {[%emt 0:00:08]} 30. Qf1 {[%emt 0:03:55]} Bg4 {[%emt 0:01:25]} 31. Nf3 {[%emt 0:00:48]} Ne7 {[%emt 0:03:40]} 32. Bb7 {[%emt 0:01:21]} Nc6 {[%emt 0:01:18]} 33. Bxc6 {[%emt 0:00:28]} Qxc6 {[%emt 0:00:04]} 34. Ne5 {[%emt 0:00:22]} Rxf1 {[%emt 0:00:08]} 35. Nxc6 {[%emt 0:00:09]} Rf2+ {[%emt 0:00:04]} 36. Kh1 {[%emt 0:00:12]} Bf3# {[%emt 0:00:07]} 0-1

[Event "WYCC 2018 G14"]
[Site "Halkidiki"]
[Date "2018.10.28"]
[Round "9"]
[White "Hernandez Guerra, Luna Yue"]
[Black "Jaufarally, Nadia"]
[Result "0-1"]
[ECO "B23"]
[WhiteElo "1659"]
[BlackElo "1810"]
[Annotator "NA"]
[PlyCount "100"]
[EventDate "2018.10.20"]
[EventType "swiss"]
[EventCountry "GRE"]
[SourceTitle "playchess.com"]
[Source "ChessBase"]
[SourceQuality "1"]
[TimeControl "40/5400+30:1800+30"]

1. e4 {[%emt 0:00:00]} c5 {[%emt 0:00:00]} 2. Nc3 {[%emt 0:00:00]} g6 {[%emt 0:00:00]} 3. Bc4 {[%emt 0:00:00]} Nc6 {[%emt 0:00:30]} 4. a3 {[%emt 0:00:50]} Bg7 {[%emt 0:00:19]} 5. d3 {[%emt 0:00:06]} e6 {[%emt 0:00:31]} 6. Ba2 {[%emt 0:00:05]} Nge7 {[%emt 0:00:26]} 7. h4 {[%emt 0:00:07]} h5 {[%emt 0:00:47]} 8. Bg5 {[%emt 0:00:17]} d6 {[%emt 0:02:18]} 9. Qd2 {[%emt 0:03:09]} b6 {[%emt 0:03:35]} 10. Nf3 {[%emt 0:00:56]} Bb7 {[%emt 0:00:27]} 11. O-O {[%emt 0:01:12]} Qd7 {[%emt 0:00:53]} 12. Rab1 {[%emt 0:01:23]} O-O {[%emt 0:05:43]} 13. Ne2 {[%emt 0:01:39]} Rfe8 {[%emt 0:03:58]} 14. Ng3 {[%emt 0:06:33]} Kh7 {[%emt 0:08:42]} 15. c3 {[%emt 0:09:58]} d5 {[%emt 0:04:19]} 16. Qe3 {[%emt 0:14:07]} f6 {[%emt 0:04:43]} 17. exd5 {[%emt 0:04:46]} Nxd5 {[%emt 0:02:32]} 18. Qe4 {[%emt 0:00:53]} fxg5 {[%emt 0:01:38]} 19. Nxg5+ {[%emt 0:00:21]} Kh6 {[%emt 0:10:19]} 20. Nxh5 {[%emt 0:27:02]} Kxh5 {[%emt 0:13:51]} 21. g4+ {[%emt 0:01:13]} Kh6 {[%emt 0:01:08]} 22. h5 {[%emt 0:01:27]} Ne5 {[%emt 0:16:44]} 23. hxg6 {[%emt 0:04:52]} Nxg6 {[%emt 0:04:19]} 24. Bxd5 {[%emt 0:05:14]} Qxd5 {[%emt 0:01:22]} 25. f4 {[%emt 0:03:25]} Qxe4 {[%emt 0:00:54]} 26. dxe4 {[%emt 0:00:07]} e5 {[%emt 0:03:49]} 27. Nf7+ {[%emt 0:00:18]} Kh7 {[%emt 0:00:06]} 28. f5 {[%emt 0:00:36]} Nf4 {[%emt 0:00:36]} 29. Nd6 {[%emt 0:00:45]} Re7 {[%emt 0:01:10]} 30. Rf3 {[%emt 0:03:14]} Rd8 {[%emt 0:02:02]} 31. Nxb7 {[%emt 0:00:15]} Rxb7 {[%emt 0:00:04]} 32. g5 {[%emt 0:00:28]} Rd2 {[%emt 0:01:05]} 33. Kf1 {[%emt 0:00:27]} Rbd7 {[%emt 0:00:46]} 34. b4 {[%emt 0:01:11]} Rd1+ {[%emt 0:00:26]} 35. Rxd1 {[%emt 0:00:06]} Rxd1+ {[%emt 0:00:04]} 36. Kf2 {[%emt 0:00:05]} cxb4 {[%emt 0:00:30]} 37. cxb4 {[%emt 0:00:15]} Rd3 {[%emt 0:00:36]} 38. Rg3 {[%emt 0:01:15]} Rxg3 {[%emt 0:00:10]} 39. Kxg3 {[%emt 0:00:05]} Bf8 {[%emt 0:00:12]} 40. Kf3 {[%emt 0:00:00]} Be7 {[%emt 0:00:00]} 41. Kg4 {[%emt 0:01:42]} Nd3 {[%emt 0:01:26]} 42. g6+ {[%emt 0:03:38]} Kg7 {[%emt 0:00:08]} 43. Kf3 {[%emt 0:00:06]} Nf4 {[%emt 0:00:12]} 44. Ke3 {[%emt 0:00:36]} Nxg6 {[%emt 0:00:25]} 45. fxg6 {[%emt 0:00:06]} Kxg6 {[%emt 0:00:04]} 46. Kd3 {[%emt 0:00:05]} Kg5 {[%emt 0:00:13]} 47. Kc4 {[%emt 0:00:11]} a5 {[%emt 0:01:52]} 48. bxa5 {[%emt 0:00:25]} bxa5 {[%emt 0:00:05]} 49. a4 {[%emt 0:00:04]} Kf4 {[%emt 0:00:06]} 50. Kd5 {[%emt 0:00:27]} Bb4 {[%emt 0:00:09]} 0-1

[Event "WYCC 2018 G14"]
[Site "Halkidiki"]
[Date "2018.10.28"]
[Round "9"]
[White "Kong, Sydney"]
[Black "Tamrazyan, Gohar"]
[Result "1/2-1/2"]
[ECO "B32"]
[WhiteElo "1659"]
[BlackElo "1824"]
[Annotator "NA"]
[PlyCount "100"]
[EventDate "2018.10.20"]
[EventType "swiss"]
[EventCountry "GRE"]
[SourceTitle "playchess.com"]
[Source "ChessBase"]
[SourceQuality "1"]
[TimeControl "40/5400+30:1800+30"]

1. e4 {[%emt 0:00:00]} c5 {[%emt 0:00:00]} 2. Nf3 {[%emt 0:00:00]} Nc6 {[%emt 0:00:00]} 3. d4 {[%emt 0:00:00]} cxd4 {[%emt 0:00:00]} 4. Nxd4 {[%emt 0:00:00]} e5 {[%emt 0:00:00]} 5. Nf5 {[%emt 0:01:36]} d6 {[%emt 0:00:09]} 6. Ne3 {[%emt 0:00:14]} Nge7 {[%emt 0:04:54]} 7. Bc4 {[%emt 0:04:32]} Ng6 {[%emt 0:04:14]} 8. Nc3 {[%emt 0:06:56]} Be6 {[%emt 0:04:53]} 9. Ned5 {[%emt 0:07:45]} Be7 {[%emt 0:05:58]} 10. Be3 {[%emt 0:05:03]} O-O {[%emt 0:01:52]} 11. Qd2 {[%emt 0:06:58]} Nh4 {[%emt 0:05:41]} 12. f3 {[%emt 0:03:46]} Rc8 {[%emt 0:17:08]} 13. Nxe7+ {[%emt 0:02:37]} Nxe7 {[%emt 0:02:21]} 14. Bxe6 {[%emt 0:00:51]} fxe6 {[%emt 0:00:08]} 15. Qf2 {[%emt 0:11:25]} Nc6 {[%emt 0:02:26]} 16. Qd2 {[%emt 0:05:07]} Ng6 {[%emt 0:13:25]} 17. O-O-O {[%emt 0:01:48]} Nf4 {[%emt 0:08:42]} 18. Bxf4 {[%emt 0:03:38]} exf4 {[%emt 0:01:00]} 19. Qxd6 {[%emt 0:01:18]} Qxd6 {[%emt 0:00:08]} 20. Rxd6 {[%emt 0:00:02]} e5 {[%emt 0:00:28]} 21. Rd7 {[%emt 0:01:05]} Rf7 {[%emt 0:00:41]} 22. Rhd1 {[%emt 0:00:41]} Nd4 {[%emt 0:01:06]} 23. Rd5 {[%emt 0:02:49]} Re7 {[%emt 0:02:53]} 24. Rd2 {[%emt 0:01:07]} Kf7 {[%emt 0:04:08]} 25. Nb5 {[%emt 0:02:05]} Nxb5 {[%emt 0:00:34]} 26. Rxb5 {[%emt 0:00:22]} Rc6 {[%emt 0:00:38]} 27. Rdd5 {[%emt 0:02:31]} a6 {[%emt 0:02:51]} 28. Rbc5 {[%emt 0:00:50]} Rxc5 {[%emt 0:02:08]} 29. Rxc5 {[%emt 0:00:02]} Kf6 {[%emt 0:04:08]} 30. Kd2 {[%emt 0:01:04]} g5 {[%emt 0:02:42]} 31. c4 {[%emt 0:02:36]} Rg7 {[%emt 0:01:15]} 32. h3 {[%emt 0:00:48]} h5 {[%emt 0:00:41]} 33. Ke2 {[%emt 0:00:43]} g4 {[%emt 0:00:31]} 34. hxg4 {[%emt 0:01:01]} hxg4 {[%emt 0:00:02]} 35. fxg4 {[%emt 0:00:32]} Rxg4 {[%emt 0:00:12]} 36. Kf2 {[%emt 0:00:10]} Rg7 {[%emt 0:03:59]} 37. Rd5 {[%emt 0:01:29]} Ke6 {[%emt 0:00:26]} 38. Rd3 {[%emt 0:00:41]} Rc7 {[%emt 0:02:16]} 39. Rc3 {[%emt 0:00:34]} Rd7 {[%emt 0:00:44]} 40. Kf3 {[%emt 0:00:00]} Rd4 {[%emt 0:00:00]} 41. Rb3 {[%emt 0:05:34]} Rxc4 {[%emt 0:10:46]} 42. Rxb7 {[%emt 0:00:02]} Rc2 {[%emt 0:08:21]} 43. g3 fxg3 {[%emt 0:00:23]} 44. Kxg3 {[%emt 0:01:50]} Kd6 {[%emt 0:00:23]} 45. Rb3 {[%emt 0:01:34]} Rd2 {[%emt 0:02:38]} 46. Kf3 {[%emt 0:03:54]} Kc5 {[%emt 0:01:19]} 47. Ke3 {[%emt 0:01:04]} Rh2 {[%emt 0:00:10]} 48. Rb8 {[%emt 0:01:34]} Rh3+ {[%emt 0:00:39]} 49. Kd2 {[%emt 0:01:04]} Rh4 {[%emt 0:03:25]} 50. Kd3 {[%emt 0:04:35]} Rh3+ {[%emt 0:00:15]} 1/2-1/2

[Event "WYCC 2018 G14"]
[Site "Halkidiki"]
[Date "2018.10.28"]
[Round "9"]
[White "Figueroa Bernal, Julia Dennis"]
[Black "Murzina, Agata"]
[Result "0-1"]
[ECO "C06"]
[WhiteElo "1650"]
[BlackElo "1768"]
[Annotator "NA"]
[PlyCount "110"]
[EventDate "2018.10.20"]
[EventType "swiss"]
[EventCountry "GRE"]
[SourceTitle "playchess.com"]
[Source "ChessBase"]
[SourceQuality "1"]
[TimeControl "40/5400+30:1800+30"]

1. e4 {[%emt 0:00:00]} e6 {[%emt 0:00:55]} 2. d4 {[%emt 0:00:00]} d5 {[%emt 0:00:03]} 3. Nd2 {[%emt 0:00:00]} Nf6 {[%emt 0:00:09]} 4. e5 {[%emt 0:00:00]} Nfd7 {[%emt 0:00:06]} 5. Bd3 {[%emt 0:00:00]} c5 {[%emt 0:00:25]} 6. c3 {[%emt 0:00:05]} Nc6 {[%emt 0:00:05]} 7. Ne2 {[%emt 0:00:06]} cxd4 {[%emt 0:00:28]} 8. cxd4 {[%emt 0:00:08]} f6 {[%emt 0:00:14]} 9. exf6 {[%emt 0:00:10]} Nxf6 {[%emt 0:00:06]} 10. Nf3 {[%emt 0:00:05]} Bd6 {[%emt 0:00:11]} 11. O-O {[%emt 0:00:19]} O-O {[%emt 0:00:04]} 12. Re1 {[%emt 0:00:14]} Ng4 {[%emt 0:05:09]} 13. Nc3 {[%emt 0:13:14]} Bd7 {[%emt 0:38:41]} 14. Bxh7+ {[%emt 0:02:11]} Kxh7 {[%emt 0:00:04]} 15. Ng5+ {[%emt 0:00:08]} Qxg5 {[%emt 0:00:25]} 16. Bxg5 {[%emt 0:05:15]} Bxh2+ {[%emt 0:00:08]} 17. Kh1 {[%emt 0:00:11]} Nxf2+ {[%emt 0:00:05]} 18. Kxh2 {[%emt 0:00:09]} Nxd1 {[%emt 0:00:05]} 19. Raxd1 {[%emt 0:00:10]} Rf2 {[%emt 0:01:05]} 20. Re2 {[%emt 0:01:18]} Raf8 {[%emt 0:00:14]} 21. Kg3 {[%emt 0:00:27]} Rf1 {[%emt 0:01:03]} 22. Red2 {[%emt 0:01:53]} Kg6 {[%emt 0:00:24]} 23. Rxf1 {[%emt 0:01:28]} Rxf1 {[%emt 0:00:06]} 24. Be3 {[%emt 0:00:52]} Ne7 {[%emt 0:03:08]} 25. Bf2 {[%emt 0:01:46]} Nf5+ {[%emt 0:05:46]} 26. Kh2 {[%emt 0:00:39]} Nd6 {[%emt 0:00:30]} 27. Bg3 {[%emt 0:09:48]} Nc4 {[%emt 0:00:23]} 28. Rc2 {[%emt 0:06:16]} Ra1 {[%emt 0:12:46]} 29. b3 {[%emt 0:01:51]} Ne3 {[%emt 0:01:08]} 30. Rb2 {[%emt 0:02:13]} Kg5 {[%emt 0:05:46]} 31. Bb8 {[%emt 0:02:57]} a6 {[%emt 0:03:28]} 32. Na4 {[%emt 0:05:03]} Rd1 {[%emt 0:05:28]} 33. Nc5 {[%emt 0:08:41]} Bc8 {[%emt 0:00:14]} 34. Na4 {[%emt 0:10:32]} b5 {[%emt 0:08:09]} 35. Nb6 {[%emt 0:02:38]} Bb7 {[%emt 0:00:07]} 36. Re2 {[%emt 0:03:08]} Rd3 {[%emt 0:00:55]} 37. g3 {[%emt 0:01:05]} Ng4+ {[%emt 0:01:32]} 38. Kh3 {[%emt 0:00:07]} Kf5 {[%emt 0:00:37]} 39. Be5 {[%emt 0:01:02]} g6 {[%emt 0:04:22]} 40. Nd7 {[%emt 0:00:00]} Re3 {[%emt 0:00:00]} 41. Rxe3 {[%emt 0:02:09]} Nxe3 {[%emt 0:02:30]} 42. Nc5 {[%emt 0:04:11]} Bc8 {[%emt 0:00:07]} 43. Nd3 {[%emt 0:07:02]} g5 {[%emt 0:03:31]} 44. Nf2 {[%emt 0:03:10]} g4+ {[%emt 0:13:04]} 45. Kh4 {[%emt 0:02:58]} Bd7 {[%emt 0:00:09]} 46. Kh5 {[%emt 0:00:50]} a5 {[%emt 0:00:47]} 47. Nd3 {[%emt 0:03:04]} a4 {[%emt 0:02:11]} 48. Nc5 {[%emt 0:00:51]} Bc6 {[%emt 0:00:25]} 49. Kh6 {[%emt 0:01:43]} Nc2 {[%emt 0:00:38]} 50. Na6 {[%emt 0:05:04]} a3 {[%emt 0:08:37]} 51. b4 {[%emt 0:05:39]} Ke4 {[%emt 0:03:16]} 52. Nc5+ {[%emt 0:00:54]} Ke3 {[%emt 0:00:34]} 53. Kg5 {[%emt 0:03:16]} Nxb4 {[%emt 0:00:30]} 54. Kxg4 {[%emt 0:00:14]} Nxa2 {[%emt 0:00:07]} 55. Kh4 {[%emt 0:00:23]} b4 0-1